bitfinex-derivatives/quotes_BTCF0:USTF0_20251208
["timestamp","ask_amount","ask_price","bid_price","bid_amount"]
[1765226828563,0.05792,90756.0,90755.0,0.05669526]
[1765226828865,0.07429,90756.0,90755.0,0.05669526]
[1765226829063,0.05792,90756.0,90755.0,0.05669526]
[1765226829455,0.02907,90756.0,90755.0,0.05669526]
[1765226829765,0.05792,90756.0,90755.0,0.05669526]
[1765226830557,0.07429,90756.0,90755.0,0.00216526]
[1765226831166,0.0689396,90740.0,90739.0,0.012886]
[1765226831462,0.0689396,90740.0,90721.0,0.0110218]
[1765226831463,0.05792,90728.0,90727.0,0.56961]
[1765226831669,0.0689422,90719.0,90718.0,0.28455982]
[1765226831867,0.05792,90719.0,90718.0,0.05653]
[1765226832063,0.05792,90719.0,90718.0,0.06941757]
[1765226832367,0.0692313,90726.0,90718.0,0.01288757]
[1765226832569,0.05821,90711.0,90710.0,0.28557982]
[1765226832872,0.05821,90711.0,90710.0,0.07055212]
[1765226833057,0.05821,90711.0,90710.0,0.01300212]
[1765226833259,0.0859132,90710.0,90709.0,0.00016526]
[1765226834369,0.07489,90710.0,90709.0,0.00216526]
[1765226834758,0.07489,90710.0,90709.0,0.05971526]
[1765226834965,0.07489,90710.0,90709.0,0.05771526]
[1765226836665,0.07489,90710.0,90709.0,0.05971526]
[1765226836970,0.07489,90710.0,90709.0,0.00216526]
[1765226837771,0.01668,90720.0,90709.0,0.00216526]
[1765226838064,0.01668,90720.0,90710.0,0.22802982]
[1765226838267,0.05821,90717.0,90716.0,0.05755]
[1765226838770,0.05821,90717.0,90716.0,0.0685725]
[1765226840170,0.05821,90717.0,90716.0,0.05955]
[1765226840373,0.0692324,90717.0,90716.0,0.002]
[1765226840772,0.0692332,90710.0,90709.0,0.00016526]
[1765226842164,0.05821,90710.0,90709.0,0.00016526]
[1765226843569,0.0277032,90711.0,90693.0,0.04023924]
[1765226843570,0.05821,90694.0,90693.0,0.04023924]
[1765226843874,0.05821,90694.0,90693.0,0.0110253]
[1765226844064,0.05821,90690.0,90689.0,0.0400256]
[1765226844265,0.05821,90687.0,90686.0,0.02921394]
[1765226844464,0.05821,90686.0,90685.0,0.09779004]
[1765226844666,0.07489,90693.0,90692.0,0.05755]
[1765226846363,0.05821,90691.0,90690.0,0.04112826]
[1765226846675,0.05821,90691.0,90690.0,0.06967826]
[1765226848674,0.05821,90691.0,90690.0,0.07167826]
[1765226848876,0.06921,90691.0,90690.0,0.07167826]
[1765226855883,0.011,90691.0,90690.0,0.07167826]
[1765226856883,0.011,90691.0,90690.0,0.10096704]
[1765226857473,0.03951,90691.0,90690.0,0.10096704]
[1765226858484,0.06921,90691.0,90690.0,0.07167826]
[1765226858680,0.06921,90691.0,90690.0,0.08997268]
[1765226858889,0.06921,90691.0,90690.0,0.00310266]
[1765226858890,0.0802355,90691.0,90690.0,0.00310266]
[1765226859276,0.06921,90691.0,90690.0,0.00310266]
[1765226859881,0.06921,90691.0,90690.0,0.06065266]
[1765226860180,0.06921,90691.0,90690.0,0.08997268]
[1765226860376,0.011,90691.0,90690.0,0.09960458]
[1765226860576,0.011,90691.0,90690.0,0.06065266]
[1765226860977,0.00016536,90696.0,90690.0,0.06065266]
[1765226861181,0.00016536,90696.0,90695.0,0.05755]
[1765226861378,0.00016536,90696.0,90695.0,0.068575]
[1765226862978,0.00016536,90696.0,90695.0,0.069575]
[1765226863688,0.07536536,90696.0,90695.0,0.041025]
[1765226863894,0.07536536,90696.0,90695.0,0.068285]
[1765226864189,0.05807536,90696.0,90695.0,0.068285]
[1765226864389,0.00016536,90696.0,90695.0,0.068285]
[1765226864886,0.00016536,90696.0,90695.0,0.14666387]
[1765226865089,0.00016536,90696.0,90695.0,0.068285]
[1765226874690,0.05791,90711.0,90710.0,0.0680832]
[1765226874895,0.0289,90711.0,90710.0,0.0680832]
[1765226875085,0.07459,90720.0,90719.0,0.05706]
[1765226876001,0.07459,90720.0,90719.0,0.0298]
[1765226876395,0.05791,90717.0,90716.0,0.08007943]
[1765226876998,0.05791,90717.0,90716.0,0.06905703]
[1765226877195,0.05791,90717.0,90716.0,0.03925703]
[1765226877590,0.05891,90717.0,90716.0,0.03925703]
[1765226877991,0.05891,90717.0,90716.0,0.09631703]
[1765226878898,0.05891,90717.0,90716.0,0.03925703]
[1765226879101,0.05791,90716.0,90715.0,0.03925703]
[1765226879404,0.0689326,90715.0,90714.0,0.03925703]
[1765226880507,0.05725,90714.0,90713.0,0.03925703]
[1765226880692,0.05816,90711.0,90710.0,0.03942828]
[1765226881006,0.0110241,90703.0,90700.0,0.0110244]
[1765226881304,0.05816,90701.0,90700.0,0.0110244]
[1765226881707,0.05816,90695.0,90694.0,0.0588863]
[1765226881906,0.0691855,90691.0,90690.0,0.00110266]
[1765226882106,0.0691855,90691.0,90685.0,0.00016536]
[1765226882308,0.0691871,90678.0,90667.0,0.07851507]
[1765226882603,0.0863978,90672.0,90671.0,0.01285129]
[1765226882907,0.0691886,90666.0,90665.0,0.01213167]
[1765226883100,0.0691886,90666.0,90665.0,0.06760167]
[1765226883101,0.05816,90666.0,90665.0,0.06760167]
[1765226883297,0.05816,90666.0,90665.0,0.0970657]
[1765226883503,0.05826738,90666.0,90665.0,0.08267268]
[1765226883697,0.05826738,90666.0,90665.0,0.05426268]
[1765226883902,0.00010738,90666.0,90665.0,0.08026865]
[1765226884494,0.00010738,90666.0,90665.0,0.08126865]
[1765226884906,0.07547738,90666.0,90665.0,0.02579865]
[1765226885098,0.07547738,90666.0,90665.0,0.08126865]
[1765226886307,0.07547738,90666.0,90665.0,0.08426865]
[1765226886507,0.00010738,90666.0,90665.0,0.08326865]
[1765226887004,0.00010738,90666.0,90665.0,0.08226865]
[1765226888108,0.00010738,90666.0,90665.0,0.08026865]
[1765226888311,0.00010738,90666.0,90665.0,0.08326865]
[1765226888607,0.00010738,90666.0,90665.0,0.08526865]
[1765226888805,0.02991738,90666.0,90665.0,0.08526865]
[1765226889008,0.07547738,90666.0,90665.0,0.08526865]
[1765226889210,0.07547738,90666.0,90665.0,0.08426865]
[1765226889211,0.05826738,90666.0,90665.0,0.08426865]
[1765226889600,0.02991738,90666.0,90665.0,0.08126865]
[1765226889801,0.02991738,90666.0,90665.0,0.08426865]
[1765226890000,0.07547738,90666.0,90665.0,0.08426865]
[1765226890216,0.07547738,90666.0,90665.0,0.02779865]
[1765226890416,0.07547738,90666.0,90665.0,0.05320865]
[1765226890616,0.07547738,90666.0,90665.0,0.08326865]
[1765226890915,0.05826738,90666.0,90665.0,0.08326865]
[1765226891313,0.05826738,90666.0,90665.0,0.08226865]
[1765226892909,0.07511738,90666.0,90665.0,0.02679865]
[1765226893105,0.07511738,90666.0,90665.0,0.01576995]
[1765226893312,0.07511738,90666.0,90665.0,0.05619678]
[1765226894321,0.07511738,90666.0,90665.0,0.05498865]
[1765226895207,0.05826738,90666.0,90665.0,0.08460865]
[1765226895413,0.00010738,90666.0,90665.0,0.08460865]
[1765226896311,0.02722738,90666.0,90665.0,0.08460865]
[1765226896612,0.02722738,90666.0,90665.0,0.08560865]
[1765226898104,0.02722738,90666.0,90665.0,0.01676995]
[1765226898105,0.07386738,90666.0,90665.0,0.01676995]
[1765226898708,0.05701738,90666.0,90665.0,0.10396097]
[1765226899211,0.05701738,90666.0,90665.0,0.10296097]
[1765226903322,0.05701738,90666.0,90665.0,0.01576995]
[1765226905022,0.05701738,90666.0,90665.0,0.04517563]
[1765226905228,0.05701738,90666.0,90665.0,0.00310297]
[1765226906313,0.05701738,90666.0,90665.0,2.97e-06]
[1765226906520,0.05691,90658.0,90657.0,0.02940568]
[1765226906726,0.0110303,90652.0,90651.0,0.02940568]
[1765226906918,0.0110303,90652.0,90646.0,0.02940568]
[1765226906919,0.05691,90647.0,90646.0,0.02940568]
[1765226907119,0.05691,90642.0,90641.0,0.02962633]
[1765226907325,0.05691,90642.0,90641.0,0.00022065]
[1765226907839,0.05691,90642.0,90641.0,0.01125225]
[1765226908415,0.05691,90642.0,90641.0,0.00022065]
[1765226908617,0.05691,90642.0,90641.0,0.00122065]
[1765226909129,0.05691,90642.0,90641.0,0.05903065]
[1765226909433,0.05691,90642.0,90641.0,0.03362633]
[1765226910227,0.05691,90642.0,90641.0,0.06203065]
[1765226910827,0.05691,90642.0,90641.0,0.03241065]
[1765226911030,0.05691,90642.0,90641.0,0.06181633]
[1765226911231,0.05691,90642.0,90641.0,0.03241065]
[1765226911431,0.05691,90642.0,90641.0,0.06181633]
[1765226911728,0.01685,90648.0,90643.0,0.0110313]
[1765226911933,0.05691,90644.0,90643.0,0.0110313]
[1765226912231,0.05691,90644.0,90643.0,0.06871814]
[1765226912628,0.05691,90644.0,90643.0,0.02949684]
[1765226912933,0.05691,90644.0,90643.0,0.03249684]
[1765226913124,0.05691,90644.0,90643.0,0.03449684]
[1765226913322,0.05691,90644.0,90643.0,0.005]
[1765226913523,0.05691,90644.0,90643.0,0.06268684]
[1765226913723,0.05691,90644.0,90643.0,0.005]
[1765226914531,0.05691,90644.0,90643.0,0.002]
[1765226914720,0.05691,90644.0,90643.0,0.005]
[1765226915932,0.05691,90642.0,90641.0,0.00022065]
[1765226917228,0.05691,90642.0,90641.0,0.00322065]
[1765226917533,0.05691,90642.0,90641.0,0.00522065]
[1765226918336,0.01685,90648.0,90640.0,3.92e-06]
[1765226918337,0.0679416,90641.0,90640.0,3.92e-06]
[1765226920030,0.0679426,90633.0,90632.0,0.00016546]
[1765226920333,0.06804998,90633.0,90632.0,0.00016546]
[1765226921033,0.07604998,90633.0,90632.0,0.00016546]
[1765226921928,0.07804998,90633.0,90632.0,0.00016546]
[1765226922834,0.07704998,90633.0,90632.0,0.00016546]
[1765226923536,0.07604998,90633.0,90632.0,0.05917546]
[1765226923828,0.06501738,90633.0,90632.0,0.05917546]
[1765226924029,0.00810738,90633.0,90632.0,0.07660546]
[1765226924634,0.03435738,90633.0,90632.0,0.07660546]
[1765226924822,0.06174738,90633.0,90632.0,0.07660546]
[1765226925228,0.03435738,90633.0,90632.0,0.07660546]
[1765226925733,0.06174738,90633.0,90632.0,0.07660546]
[1765226926036,6e-08,90651.0,90650.0,0.0700405]
[1765226926238,0.00110266,90690.0,90650.0,0.0700405]
[1765226926239,0.05464,90689.0,90688.0,0.0296]
[1765226926932,0.05464,90682.0,90681.0,0.0700367]
[1765226927133,0.02725,90682.0,90681.0,0.0700367]
[1765226927531,0.02725,90682.0,90681.0,0.08279228]
[1765226927727,0.02407046,90682.0,90681.0,0.08279228]
[1765226928127,0.02507046,90682.0,90681.0,0.08279228]
[1765226929344,0.03207046,90682.0,90681.0,0.08279228]
[1765226930139,0.008,90682.0,90681.0,0.08279228]
[1765226932538,0.06264,90682.0,90681.0,0.08279228]
[1765226932734,0.06264,90682.0,90681.0,0.05901]
[1765226932942,0.05464,90681.0,90680.0,0.08954524]
[1765226933139,0.05464,90676.0,90675.0,0.0700374]
[1765226933336,0.05464,90676.0,90675.0,0.09939335]
[1765226933936,0.03525,90682.0,90681.0,0.05901]
[1765226934149,0.007,90682.0,90681.0,0.05901]
[1765226934339,0.05574266,90690.0,90689.0,0.05901]
[1765226935940,0.05574266,90690.0,90689.0,0.0700358]
[1765226936135,0.06474266,90690.0,90689.0,0.0700358]
[1765226936341,0.06674266,90690.0,90689.0,0.0700358]
[1765226940852,0.06674266,90690.0,90689.0,0.0406258]
[1765226941042,0.06674266,90690.0,90689.0,0.0679458]
[1765226942247,0.01210266,90690.0,90689.0,0.0679458]
[1765226951056,0.00110236,90715.0,90688.0,0.01717]
[1765226951057,0.05743236,90715.0,90714.0,0.0676527]
[1765226952055,0.05743236,90715.0,90705.0,0.22792728]
[1765226952056,0.05633,90711.0,90710.0,0.0676531]
[1765226952446,0.02781,90711.0,90710.0,0.0676531]
[1765226952650,0.05564,90711.0,90710.0,0.0676531]
[1765226953455,0.05764,90711.0,90710.0,0.0676531]
[1765226954259,0.05764,90711.0,90710.0,0.15809309]
[1765226954666,0.05764,90711.0,90710.0,0.09043999]
[1765226955252,0.05764,90711.0,90710.0,0.11965999]
[1765226955655,0.05764,90711.0,90710.0,0.14925999]
[1765226962375,0.0686631,90711.0,90710.0,0.14925999]
[1765226962572,0.0686631,90711.0,90710.0,0.002]
[1765226963372,0.0686631,90711.0,90710.0,0.03122]
[1765226963572,0.002,90711.0,90710.0,0.14921591]
[1765226963765,0.002,90711.0,90710.0,0.06082]
[1765226963964,0.05802,90711.0,90710.0,0.06082]
[1765226964672,0.05802,90711.0,90710.0,0.002]
[1765226964673,0.0690431,90711.0,90710.0,0.002]
[1765226965174,0.0809037,90706.0,90705.0,0.00016535]
[1765226966467,0.0809037,90706.0,90705.0,0.00316535]
[1765226967573,0.0809037,90706.0,90705.0,0.00716535]
[1765226967965,0.0110258,90689.0,90688.0,0.02927621]
[1765226968279,0.0670464,90684.0,90683.0,0.02927621]
[1765226969078,0.01687,90685.0,90677.0,0.02927621]
[1765226969079,0.07289,90678.0,90677.0,0.02927621]
[1765226969276,0.07289,90678.0,90676.0,0.02927621]
[1765226969471,0.05602,90676.0,90675.0,0.04030361]
[1765226969782,0.05602,90676.0,90675.0,0.05849621]
[1765226969980,0.05602,90676.0,90675.0,0.02927621]
[1765226970376,0.05602,90675.0,90674.0,0.09928906]
[1765226971272,0.05602,90675.0,90674.0,0.07001285]
[1765226971469,0.02819,90675.0,90674.0,0.07001285]
[1765226971771,0.05702,90675.0,90674.0,0.07001285]
[1765226972284,0.001,90675.0,90674.0,0.07001285]
[1765226973271,0.0110255,90691.0,90687.0,0.05882]
[1765226973473,0.05602,90688.0,90687.0,0.069846]
[1765226974476,0.05902,90688.0,90687.0,0.069846]
[1765226975473,0.06002,90688.0,90687.0,0.069846]
[1765226976081,0.05902,90688.0,90687.0,0.069846]
[1765226976581,0.07289,90685.0,90684.0,0.0110263]
[1765226976882,0.0670468,90682.0,90681.0,0.0110267]
[1765226977082,0.0670468,90682.0,90681.0,0.0402467]
[1765226977284,0.0670468,90682.0,90681.0,0.0698467]
[1765226977473,0.067047,90679.0,90678.0,0.0402471]
[1765226977781,0.05602,90679.0,90678.0,0.0402471]
[1765226978078,0.05602,90679.0,90678.0,0.0698471]
[1765226978986,0.002,90682.0,90681.0,0.0698467]
[1765226979176,0.03019,90682.0,90681.0,0.0698467]
[1765226979485,0.05802,90682.0,90681.0,0.0698467]
[1765226979684,0.05602,90682.0,90681.0,0.0698467]
[1765226980483,0.05702,90682.0,90681.0,0.0698467]
[1765226980670,0.001,90682.0,90681.0,0.0698467]
[1765226982284,0.02835535,90693.0,90692.0,0.0858354]
[1765226982781,0.05629535,90693.0,90692.0,0.0858354]
[1765226983286,0.05729535,90693.0,90692.0,0.0858354]
[1765226983483,0.06129535,90693.0,90692.0,0.0858354]
[1765226984185,0.00516535,90693.0,90692.0,0.0858354]
[1765226984479,0.03307535,90693.0,90692.0,0.0858354]
[1765226985271,0.00516535,90693.0,90692.0,0.0858354]
[1765226986286,0.06101535,90693.0,90692.0,0.0858354]
[1765226990373,0.06101535,90693.0,90692.0,0.1152429]
[1765226990680,0.06101535,90693.0,90692.0,0.05846]
[1765226991280,0.03307535,90693.0,90692.0,0.07481]
[1765226991480,0.06101535,90693.0,90692.0,0.07481]
[1765226991781,0.06101535,90693.0,90692.0,0.05846]
[1765226997293,0.0668754,90692.0,90691.0,0.0110255]
[1765226997591,0.05585,90691.0,90690.0,0.0404331]
[1765226997794,0.05585,90691.0,90690.0,0.0692956]
[1765226997993,0.05585,90691.0,90690.0,0.1095931]
[1765226998393,0.05585,90691.0,90690.0,0.0801856]
[1765226999196,0.01794,90690.0,90687.0,0.011026]
[1765226999396,0.01794,90690.0,90684.0,0.0404338]
[1765226999397,0.0668762,90685.0,90684.0,0.0404338]
[1765226999698,0.0668762,90685.0,90684.0,0.0987038]
[1765227000089,0.05585,90685.0,90684.0,0.0987038]
[1765227000290,0.011,90706.0,90705.0,0.0687838]
[1765227000489,0.0594316,90722.0,90714.0,0.0687827]
[1765227000694,0.0703708,90730.0,90729.0,0.05776]
[1765227000991,0.01658,90727.0,90722.0,0.02891]
[1765227001184,0.01658,90720.0,90718.0,0.0236349]
[1765227001383,0.05935,90713.0,90712.0,0.03922075]
[1765227001590,0.086953,90712.0,90711.0,0.03922075]
[1765227001784,0.05935,90711.0,90710.0,0.00016535]
[1765227002394,0.05935,90711.0,90710.0,0.06894855]
[1765227002899,0.01658,90720.0,90710.0,0.06894855]
[1765227002900,0.05617046,90720.0,90719.0,0.0687821]
[1765227003098,0.05617046,90720.0,90719.0,0.05776]
[1765227003295,0.07275046,90720.0,90719.0,0.05776]
[1765227003595,0.05617046,90720.0,90719.0,0.05776]
[1765227004091,0.05617046,90720.0,90719.0,0.05876]
[1765227004295,0.07275046,90720.0,90719.0,0.05876]
[1765227004492,0.07275046,90720.0,90719.0,0.001]
[1765227004692,0.07275046,90720.0,90713.0,0.0110227]
[1765227004693,0.05935,90714.0,90713.0,0.0110227]
[1765227004901,0.05935,90711.0,90710.0,0.00216535]
[1765227005198,0.05935,90711.0,90710.0,0.00016535]
[1765227005400,0.05935,90711.0,90710.0,0.05792535]
[1765227005784,0.05935,90711.0,90710.0,0.00016535]
[1765227006287,0.05935,90711.0,90710.0,0.03007535]
[1765227006487,0.05935,90720.0,90719.0,0.05776]
[1765227006789,0.05935,90720.0,90719.0,0.0687821]
[1765227006994,0.05935,90716.0,90715.0,0.0399325]
[1765227007391,0.01658,90727.0,90715.0,0.0399325]
[1765227007392,0.01658,90727.0,90715.0,0.0687825]
[1765227007587,0.05951535,90728.0,90727.0,0.05776]
[1765227008292,0.00016535,90728.0,90727.0,0.05776]
[1765227008889,0.03011535,90728.0,90727.0,0.05776]
[1765227009087,0.01658,90752.0,90731.0,0.0687807]
[1765227009303,0.0110194,90742.0,90731.0,0.0687807]
[1765227010099,0.03017065,90732.0,90731.0,0.0687807]
[1765227010403,0.00022065,90732.0,90731.0,0.0687807]
[1765227010806,0.00322065,90732.0,90731.0,0.0687807]
[1765227011691,0.06257065,90732.0,90731.0,0.0687807]
[1765227012996,0.00322065,90732.0,90731.0,0.0687807]
[1765227013905,0.03070065,90732.0,90731.0,0.0687807]
[1765227014205,0.05852065,90732.0,90731.0,0.0687807]
[1765227014803,0.00322065,90732.0,90731.0,0.0687807]
[1765227016802,0.00110206,90740.0,90739.0,0.0659897]
[1765227017498,0.00016462,90741.0,90739.0,0.0659897]
[1765227017499,0.00016462,90741.0,90740.0,0.05497]
[1765227017705,0.0663173,90759.0,90758.0,0.05497]
[1765227019804,0.0663173,90759.0,90758.0,0.02791]
[1765227019990,0.0553,90750.0,90749.0,0.06615385]
[1765227020195,0.0384974,90758.0,90757.0,0.05497]
[1765227020495,0.0663174,90758.0,90757.0,0.05497]
[1765227020695,0.0553,90758.0,90757.0,0.05497]
[1765227024811,0.0110167,90764.0,90752.0,0.01621]
[1765227024812,0.00110175,90765.0,90764.0,0.0659866]
[1765227026305,0.0553,90778.0,90777.0,0.0380751]
[1765227026507,0.02748,90778.0,90777.0,0.0659851]
[1765227027004,0.0553,90778.0,90777.0,0.0659851]
[1765227027193,0.00110145,90790.0,90784.0,0.01621]
[1765227027398,0.0553,90789.0,90788.0,0.05497]
[1765227028197,0.0553,90789.0,90777.0,0.01200677]
[1765227028509,0.0553,90789.0,90760.0,0.07504113]
[1765227028510,0.0553,90769.0,90768.0,0.06615146]
[1765227028899,0.0553,90775.0,90774.0,0.0659854]
[1765227029400,0.0553,90775.0,90774.0,0.05497]
[1765227029606,0.0553,90769.0,90768.0,0.00016526]
[1765227029809,0.0563,90769.0,90768.0,0.00016526]
[1765227030212,0.0563,90769.0,90768.0,0.05513526]
[1765227031312,0.0553,90769.0,90768.0,0.05513526]
[1765227031503,0.0573,90775.0,90774.0,0.05497]
[1765227031809,0.0573,90775.0,90774.0,0.0812654]
[1765227032012,0.0553,90771.0,90770.0,0.0389258]
[1765227032313,0.0663158,90771.0,90770.0,0.0659858]
[1765227032519,0.0553,90769.0,90768.0,0.00016526]
[1765227032708,0.02748,90769.0,90768.0,0.05513526]
[1765227032907,0.0553,90769.0,90768.0,0.05513526]
[1765227033309,0.0553,90769.0,90768.0,0.02807526]
[1765227034014,0.0553,90769.0,90768.0,0.05513526]
[1765227035418,0.0563,90769.0,90768.0,0.05513526]
[1765227037515,0.001,90769.0,90768.0,0.05513526]
[1765227039017,0.06508591,90783.0,90782.0,0.05497]
[1765227039623,0.0553,90783.0,90782.0,0.05497]
[1765227040510,0.0553,90777.0,90776.0,0.0659851]
[1765227041413,0.0553,90777.0,90776.0,0.0821951]
[1765227041812,0.05640145,90790.0,90789.0,0.05497]
[1765227043127,0.0669842,90784.0,90783.0,0.0683043]
[1765227044223,0.0699842,90784.0,90783.0,0.0683043]
[1765227044620,0.0699842,90784.0,90783.0,0.05729]
[1765227044829,0.05597,90775.0,90774.0,0.06765075]
[1765227045121,0.05597,90775.0,90774.0,0.05729]
[1765227046118,0.05597,90775.0,90774.0,0.09751075]
[1765227046516,0.05597,90775.0,90774.0,0.09651075]
[1765227046728,0.05597,90775.0,90774.0,0.09851075]
[1765227047228,0.00110145,90790.0,90789.0,0.05729]
[1765227047728,0.00110145,90790.0,90789.0,0.09636403]
[1765227048027,0.00110145,90790.0,90789.0,0.05729]
[1765227048224,0.05597,90805.0,90804.0,0.0683018]
[1765227048522,0.05597,90801.0,90800.0,0.0394422]
[1765227048726,0.05597,90801.0,90800.0,0.0683022]
[1765227049332,0.02785,90801.0,90800.0,0.0683022]
[1765227050327,0.05597,90801.0,90800.0,0.0683022]
[1765227050733,0.02785,90801.0,90800.0,0.0683022]
[1765227051318,0.02785,90801.0,90800.0,0.0855222]
[1765227051625,0.0832311,90810.0,90809.0,0.05729]
[1765227051928,0.0669811,90810.0,90809.0,0.05729]
[1765227052118,0.0669811,90810.0,90809.0,0.02843]
[1765227052329,0.05597,90801.0,90800.0,0.0683022]
[1765227052521,0.05597,90801.0,90800.0,0.02843]
[1765227053030,0.05597,90796.0,90795.0,0.06846816]
[1765227053527,0.0110086,90831.0,90814.0,0.0683006]
[1765227053737,0.01625,90832.0,90814.0,0.0683006]
[1765227054231,0.0110082,90834.0,90814.0,0.0683006]
[1765227054419,0.01625,90848.0,90810.0,0.01722]
[1765227054420,0.28649087,90824.0,90810.0,0.01722]
[1765227054617,0.0110109,90812.0,90810.0,0.07451]
[1765227055227,0.01005985,90812.0,90810.0,0.01722]
[1765227056214,0.01105985,90812.0,90810.0,0.01722]
[1765227057125,0.01105985,90812.0,90808.0,6e-08]
[1765227057623,0.01105985,90812.0,90810.0,0.04565]
[1765227057824,0.01105985,90812.0,90810.0,0.07451]
[1765227058430,0.01005985,90812.0,90810.0,0.07451]
[1765227058731,0.01105985,90812.0,90810.0,0.07451]
[1765227059334,0.01105985,90812.0,90810.0,0.01722]
[1765227060534,0.0110112,90809.0,90808.0,6e-08]
[1765227061640,0.011013,90794.0,90792.0,0.01722]
[1765227062031,0.0110141,90785.0,90784.0,0.04565]
[1765227062238,0.0110141,90785.0,90784.0,0.01722]
[1765227062432,0.0110141,90785.0,90784.0,0.07451]
[1765227063032,0.0110149,90778.0,90777.0,0.05729]
[1765227064932,0.0110149,90778.0,90775.0,0.00016516]
[1765227065344,0.0110149,90778.0,90775.0,0.05745516]
[1765227066842,0.18396,90776.0,90775.0,0.02859516]
[1765227068740,0.18396,90776.0,90775.0,0.11804516]
[1765227068943,0.09208,90776.0,90775.0,0.11804516]
[1765227069137,0.18396,90776.0,90775.0,0.11804516]
[1765227072646,0.0110164,90766.0,90765.0,0.0293081]
[1765227072837,0.17793,90759.0,90755.0,0.0293081]
[1765227073037,0.1889473,90759.0,90753.0,0.0293081]
[1765227073239,0.1889473,90759.0,90742.0,0.03905612]
[1765227073439,0.1889473,90759.0,90694.0,0.13695366]
[1765227073440,0.04734,90711.0,90694.0,0.13695366]
[1765227073644,0.17793,90699.0,90698.0,0.18725]
[1765227073841,0.0110245,90700.0,90699.0,0.18725]
[1765227074150,0.0110239,90705.0,90704.0,0.18725]
[1765227074338,0.23871475,90710.0,90709.0,0.18725]
[1765227074646,0.10173413,90710.0,90709.0,0.18725]
[1765227074843,0.01113413,90710.0,90709.0,0.18725]
[1765227076243,0.10173413,90710.0,90709.0,0.18725]
[1765227076751,0.18906413,90710.0,90709.0,0.18825]
[1765227077545,0.18906413,90710.0,90709.0,0.18725]
[1765227078541,0.01113413,90710.0,90709.0,0.18725]
[1765227078750,0.10173413,90710.0,90709.0,0.36333325]
[1765227079048,0.18906413,90710.0,90709.0,0.36333325]
[1765227080847,0.00011083,90710.0,90709.0,0.36333325]
[1765227081758,0.40562145,90740.0,90739.0,0.18725]
[1765227081945,0.17793,90740.0,90739.0,0.18725]
[1765227082247,0.2362896,90740.0,90739.0,0.16506305]
[1765227082946,0.1889507,90731.0,90730.0,0.00016538]
[1765227083341,0.0110207,90731.0,90730.0,0.24154538]
[1765227083952,0.1016207,90731.0,90730.0,0.24154538]
[1765227084152,0.1016201,90736.0,90735.0,0.18725]
[1765227085353,0.1889501,90736.0,90735.0,0.18725]
[1765227089858,0.0110201,90736.0,90735.0,0.18725]
[1765227090360,0.00016501,90749.0,90748.0,0.18725]
[1765227090361,0.18911351,90749.0,90748.0,0.18725]
[1765227090552,0.21436238,90749.0,90748.0,0.18725]
[1765227090745,0.18911351,90749.0,90748.0,0.18725]
[1765227093253,0.21439728,90749.0,90748.0,0.18725]
[1765227094459,0.21439728,90749.0,90748.0,0.09366]
[1765227095165,0.21439728,90749.0,90748.0,0.18725]
[1765227095765,0.01118351,90749.0,90748.0,0.18725]
[1765227096155,0.10178351,90749.0,90748.0,0.18725]
[1765227096355,0.01118351,90749.0,90748.0,0.35231305]
[1765227097470,0.18911351,90749.0,90748.0,0.35231305]
[1765227099263,0.21444825,90749.0,90748.0,0.35231305]
[1765227099669,0.03651825,90749.0,90748.0,0.35231305]
[1765227099852,0.01118262,90749.0,90748.0,0.35231305]
[1765227100055,0.00016412,90749.0,90748.0,0.35231305]
[1765227101264,0.00016412,90749.0,90748.0,0.33801305]
[1765227101667,0.00016412,90749.0,90748.0,0.45921305]
[1765227101864,0.00016412,90749.0,90748.0,0.46121305]
[1765227102373,0.21956412,90749.0,90748.0,0.46121305]
[1765227102568,0.00016412,90749.0,90748.0,0.46121305]
[1765227102972,0.02893793,90749.0,90748.0,0.46121305]
[1765227109760,0.02877381,90749.0,90748.0,0.46121305]
[1765227109967,0.05910118,90760.0,90758.0,0.2225674]
[1765227110176,0.05910118,90760.0,90759.0,0.21155]
[1765227110379,0.05910118,90760.0,90759.0,0.37661305]
[1765227110566,0.0110171,90761.0,90760.0,0.26379]
[1765227110766,0.0110171,90761.0,90760.0,0.42885305]
[1765227111279,0.1040871,90761.0,90760.0,0.42885305]
[1765227111670,0.2304171,90761.0,90760.0,0.42885305]
[1765227112774,0.2304171,90761.0,90760.0,0.26379]
[1765227112977,0.0110171,90761.0,90760.0,0.42885305]
[1765227113175,0.2304171,90761.0,90760.0,0.42885305]
[1765227114474,0.0110171,90761.0,90760.0,0.42885305]
[1765227114675,0.13862529,90788.0,90763.0,0.21155]
[1765227114676,0.05929906,90764.0,90763.0,0.21155]
[1765227114873,0.07901509,90773.0,90771.0,0.2225658]
[1765227114874,0.05929906,90773.0,90771.0,0.2225658]
[1765227115179,0.05929906,90776.0,90775.0,0.21155]
[1765227115379,0.07031416,90777.0,90776.0,0.2748052]
[1765227116071,0.0110151,90777.0,90776.0,0.2748052]
[1765227116469,0.1040851,90777.0,90776.0,0.2748052]
[1765227116864,0.0110151,90777.0,90776.0,0.43986825]
[1765227117481,0.07031376,90780.0,90779.0,0.2225648]
[1765227117683,0.0110147,90780.0,90779.0,0.2225648]
[1765227117979,0.0110147,90780.0,90779.0,0.23460178]
[1765227118179,0.0110147,90780.0,90779.0,0.39966483]
[1765227119180,0.07031326,90784.0,90782.0,0.2225645]
[1765227119368,0.05929906,90785.0,90784.0,0.2225642]
[1765227119574,0.07031296,90787.0,90786.0,0.222564]
[1765227119873,0.05929906,90787.0,90786.0,0.38762705]
[1765227120076,0.05929906,90788.0,90786.0,0.38762705]
[1765227120276,0.0110125,90798.0,90795.0,0.0110128]
[1765227120478,0.0110125,90798.0,90797.0,0.23066]
[1765227120479,0.1316425,90798.0,90797.0,0.23066]
[1765227120679,0.1316425,90798.0,90797.0,0.39572305]
[1765227121275,0.131642,90803.0,90802.0,0.11478]
[1765227121476,0.1316416,90806.0,90805.0,0.23066]
[1765227121773,0.2569516,90806.0,90805.0,0.23066]
[1765227121975,0.28546987,90806.0,90805.0,0.23066]
[1765227122791,0.256952,90802.0,90801.0,0.16506305]
[1765227122970,0.28547027,90802.0,90801.0,5e-08]
[1765227123285,0.2569537,90788.0,90787.0,0.23082528]
[1765227123489,0.28547197,90788.0,90787.0,0.23082528]
[1765227123670,0.28547197,90788.0,90787.0,0.00016528]
[1765227124582,0.28547197,90788.0,90787.0,0.00116528]
[1765227124781,0.28547197,90788.0,90787.0,0.00216528]
[1765227125183,0.28547197,90788.0,90787.0,0.00116528]